[Event "Early-Titled-Tuesday-Blitz-October-03-2023"]
[Site "Chess.com"]
[Date "2023.10.03"]
[Round "1"]
[White "shimastream"]
[Black "MidnightFox"]
[Result "1-0"]
[WhiteElo "2959"]
[BlackElo "2504"]
[TimeControl "180+1"]
[EndTime "8:08:37 PDT"]
[Termination "shimastream won by checkmate"]

1. Nf3 {[%clk 0:02:53.9]} 1... g6 {[%clk 0:02:56.2]} 2. d4 {[%clk 0:02:51.9]}
2... Nf6 {[%clk 0:02:55.5]} 3. Nbd2 {[%clk 0:02:49.4]} 3... d5 {[%clk
0:02:54.9]} 4. b4 {[%clk 0:02:49.1]} 4... Bg7 {[%clk 0:02:52.2]} 5. e3 {[%clk
0:02:49]} 5... c6 {[%clk 0:02:52.6]} 6. Bb2 {[%clk 0:02:43.7]} 6... a5 {[%clk
0:02:50.8]} 7. b5 {[%clk 0:02:43.3]} 7... a4 {[%clk 0:02:51.2]} 8. c4 {[%clk
0:02:42.9]} 8... O-O {[%clk 0:02:50.7]} 9. a3 {[%clk 0:02:36.8]} 9... Bf5 {[%clk
0:02:44.2]} 10. Be2 {[%clk 0:02:36.2]} 10... Nbd7 {[%clk 0:02:40.8]} 11. O-O
{[%clk 0:02:35.5]} 11... Ne4 {[%clk 0:02:36.7]} 12. Rc1 {[%clk 0:02:33.4]} 12...
Nxd2 {[%clk 0:02:23.7]} 13. Qxd2 {[%clk 0:02:27.8]} 13... dxc4 {[%clk 0:02:20]}
14. Bxc4 {[%clk 0:02:26.8]} 14... cxb5 {[%clk 0:02:18.1]} 15. Bxb5 {[%clk
0:02:26.4]} 15... Nf6 {[%clk 0:02:14.8]} 16. Rfd1 {[%clk 0:02:23]} 16... Qd6
{[%clk 0:02:04.2]} 17. Ne5 {[%clk 0:02:20.8]} 17... Be6 {[%clk 0:01:56.8]} 18.
Nc4 {[%clk 0:02:13.3]} 18... Qd5 {[%clk 0:01:51.4]} 19. Qb4 {[%clk 0:02:08.2]}
19... Qh5 {[%clk 0:01:46.3]} 20. Ne5 {[%clk 0:02:04.6]} 20... Bb3 {[%clk
0:01:43.5]} 21. Re1 {[%clk 0:01:58.8]} 21... Nd5 {[%clk 0:01:41.6]} 22. Qd2
{[%clk 0:01:58.3]} 22... e6 {[%clk 0:01:36.7]} 23. Nd7 {[%clk 0:01:41]} 23...
Rfd8 {[%clk 0:01:31.5]} 24. Nc5 {[%clk 0:01:40.1]} 24... b6 {[%clk 0:01:30.5]}
25. Nxb3 {[%clk 0:01:36.5]} 25... axb3 {[%clk 0:01:31.4]} 26. Qd3 {[%clk
0:01:34.6]} 26... e5 {[%clk 0:01:13.9]} 27. Qxb3 {[%clk 0:01:29.4]} 27... exd4
{[%clk 0:01:12.1]} 28. exd4 {[%clk 0:01:25.7]} 28... Nf4 {[%clk 0:01:07.3]} 29.
Rcd1 {[%clk 0:01:13.5]} 29... Ra5 {[%clk 0:01:02.7]} 30. a4 {[%clk 0:01:10.1]}
30... Qg4 {[%clk 0:00:40.6]} 31. Qg3 {[%clk 0:01:03.7]} 31... Qf5 {[%clk
0:00:35.4]} 32. Qf3 {[%clk 0:00:58.4]} 32... Raa8 {[%clk 0:00:29.1]} 33. g3
{[%clk 0:00:57.3]} 33... Nh3+ {[%clk 0:00:27.8]} 34. Kg2 {[%clk 0:00:57.6]}
34... Qxf3+ {[%clk 0:00:14.1]} 35. Kxf3 {[%clk 0:00:58.5]} 35... Ng5+ {[%clk
0:00:14.4]} 36. Kg2 {[%clk 0:00:55.1]} 36... Ne6 {[%clk 0:00:15.3]} 37. d5
{[%clk 0:00:42.8]} 37... Bxb2 {[%clk 0:00:16.2]} 38. dxe6 {[%clk 0:00:42.3]}
38... fxe6 {[%clk 0:00:16.9]} 39. Rb1 {[%clk 0:00:38.2]} 39... Bd4 {[%clk
0:00:15]} 40. Rxe6 {[%clk 0:00:37.8]} 40... Bc5 {[%clk 0:00:14.3]} 41. Rb2
{[%clk 0:00:37.5]} 41... Ra7 {[%clk 0:00:13.1]} 42. Rbe2 {[%clk 0:00:36.8]}
42... Kg7 {[%clk 0:00:12.2]} 43. h4 {[%clk 0:00:36]} 43... Rf7 {[%clk
0:00:09.7]} 44. f4 {[%clk 0:00:35.4]} 44... Rdf8 {[%clk 0:00:06.1]} 45. Kf3
{[%clk 0:00:33.4]} 45... Rd8 {[%clk 0:00:05.5]} 46. R6e5 {[%clk 0:00:31.3]}
46... Rdf8 {[%clk 0:00:05.4]} 47. h5 {[%clk 0:00:31.2]} 47... gxh5 {[%clk
0:00:05.3]} 48. Rxh5 {[%clk 0:00:31.1]} 48... Rd8 {[%clk 0:00:04.9]} 49. Reh2
{[%clk 0:00:29.2]} 49... Kh8 {[%clk 0:00:04.3]} 50. Re2 {[%clk 0:00:25.3]} 50...
Rdf8 {[%clk 0:00:04]} 51. Rg5 {[%clk 0:00:24.9]} 51... Rd8 {[%clk 0:00:04.2]}
52. Rge5 {[%clk 0:00:17.4]} 52... Rdf8 {[%clk 0:00:04.2]} 53. a5 {[%clk
0:00:15.9]} 53... Ra8 {[%clk 0:00:02.7]} 54. a6 {[%clk 0:00:15.6]} 54... Raf8
{[%clk 0:00:02.9]} 55. Re8 {[%clk 0:00:15.2]} 55... Kg7 {[%clk 0:00:02.9]} 56.
R2e4 {[%clk 0:00:13.1]} 56... Rxe8 {[%clk 0:00:01.8]} 57. Rxe8 {[%clk
0:00:12.9]} 57... Ra7 {[%clk 0:00:02.1]} 58. g4 {[%clk 0:00:12.5]} 58... h6
{[%clk 0:00:01.9]} 59. Ke4 {[%clk 0:00:11.6]} 59... Kf6 {[%clk 0:00:02.4]} 60.
Re5 {[%clk 0:00:10.4]} 60... Kg7 {[%clk 0:00:02.4]} 61. Re6 {[%clk 0:00:09.5]}
61... Kh7 {[%clk 0:00:02.4]} 62. Kd5 {[%clk 0:00:07.2]} 62... Kg7 {[%clk
0:00:02.8]} 63. Kc6 {[%clk 0:00:06.9]} 63... Bf2 {[%clk 0:00:02]} 64. Re5 {[%clk
0:00:06.7]} 64... Bg3 {[%clk 0:00:01.9]} 65. Re4 {[%clk 0:00:04.8]} 65... Bf2
{[%clk 0:00:02.7]} 66. Re2 {[%clk 0:00:03.6]} 66... Bc5 {[%clk 0:00:03.6]} 67.
Rd2 {[%clk 0:00:03.7]} 67... Rf7 {[%clk 0:00:04.5]} 68. Rd7 {[%clk 0:00:03.7]}
68... Rxd7 {[%clk 0:00:04.8]} 69. Kxd7 {[%clk 0:00:04.6]} 69... Kf6 {[%clk
0:00:04.8]} 70. a7 {[%clk 0:00:05.1]} 70... Be3 {[%clk 0:00:05.7]} 71. a8=Q
{[%clk 0:00:05.5]} 71... Bxf4 {[%clk 0:00:06.6]} 72. Qe4 {[%clk 0:00:05.8]}
72... Kg5 {[%clk 0:00:07.5]} 73. Qf5+ {[%clk 0:00:06.1]} 73... Kh4 {[%clk
0:00:08]} 74. Qxf4 {[%clk 0:00:06.5]} 74... h5 {[%clk 0:00:08.7]} 75. g5+ {[%clk
0:00:06.7]} 75... Kh3 {[%clk 0:00:09]} 76. Bf1# {[%clk 0:00:06.9]} 1-0

[Event "Early-Titled-Tuesday-Blitz-October-03-2023"]
[Site "Chess.com"]
[Date "2023.10.03"]
[Round "1"]
[White "Cambek64"]
[Black "MikaelyanArman"]
[Result "0-1"]
[WhiteElo "2472"]
[BlackElo "2847"]
[TimeControl "180+1"]
[EndTime "8:08:37 PDT"]
[Termination "MikaelyanArman won on time"]

1. d4 {[%clk 0:02:56.1]} 1... Nf6 {[%clk 0:02:59.7]} 2. Nf3 {[%clk 0:02:55.9]}
2... e6 {[%clk 0:02:58.7]} 3. Bg5 {[%clk 0:02:53.9]} 3... c5 {[%clk 0:02:55.4]}
4. c3 {[%clk 0:02:51.9]} 4... h6 {[%clk 0:02:52.5]} 5. Bxf6 {[%clk 0:02:50.6]}
5... Qxf6 {[%clk 0:02:53.4]} 6. e3 {[%clk 0:02:46.5]} 6... Nc6 {[%clk 0:02:48]}
7. Nbd2 {[%clk 0:02:47.1]} 7... Qd8 {[%clk 0:02:46.7]} 8. Be2 {[%clk 0:02:39.1]}
8... d5 {[%clk 0:02:41.7]} 9. O-O {[%clk 0:02:38.9]} 9... Bd7 {[%clk 0:02:36.2]}
10. a3 {[%clk 0:02:26.1]} 10... a6 {[%clk 0:02:31.6]} 11. Re1 {[%clk 0:02:20.4]}
11... Rc8 {[%clk 0:02:24.7]} 12. Qb1 {[%clk 0:02:10.4]} 12... Be7 {[%clk
0:02:22.9]} 13. Rd1 {[%clk 0:02:04.5]} 13... O-O {[%clk 0:02:22.5]} 14. dxc5
{[%clk 0:02:03]} 14... Bxc5 {[%clk 0:02:23.4]} 15. Nb3 {[%clk 0:02:01.9]} 15...
Ba7 {[%clk 0:02:21]} 16. Nbd4 {[%clk 0:02:02.1]} 16... Qf6 {[%clk 0:02:15.9]}
17. Qa2 {[%clk 0:01:54.4]} 17... Ne5 {[%clk 0:02:12.4]} 18. Nxe5 {[%clk
0:01:53.2]} 18... Qxe5 {[%clk 0:02:13.3]} 19. g3 {[%clk 0:01:52.5]} 19... Rc7
{[%clk 0:02:09.5]} 20. Rac1 {[%clk 0:01:52.1]} 20... Rfc8 {[%clk 0:02:09.5]} 21.
Qb1 {[%clk 0:01:51.6]} 21... Ba4 {[%clk 0:02:08.1]} 22. Re1 {[%clk 0:01:51]}
22... Bc5 {[%clk 0:01:53.5]} 23. Bd1 {[%clk 0:01:50.3]} 23... Be8 {[%clk
0:01:39.1]} 24. Bf3 {[%clk 0:01:34.5]} 24... b5 {[%clk 0:01:36.4]} 25. Rcd1
{[%clk 0:01:33.4]} 25... Qf6 {[%clk 0:01:32.4]} 26. Bg2 {[%clk 0:01:31.1]} 26...
Bb6 {[%clk 0:01:31.7]} 27. Qd3 {[%clk 0:01:28.2]} 27... Rc4 {[%clk 0:01:30.4]}
28. Qd2 {[%clk 0:01:21]} 28... a5 {[%clk 0:01:29.1]} 29. Bf1 {[%clk 0:01:18.2]}
29... R4c5 {[%clk 0:01:24]} 30. Qe2 {[%clk 0:00:58.9]} 30... Ba7 {[%clk
0:01:05.6]} 31. Nb3 {[%clk 0:00:52.9]} 31... R5c7 {[%clk 0:01:05.3]} 32. Nxa5
{[%clk 0:00:52.4]} 32... g6 {[%clk 0:00:58.9]} 33. Nb3 {[%clk 0:00:51.9]} 33...
h5 {[%clk 0:00:59.6]} 34. h4 {[%clk 0:00:51.2]} 34... Bb8 {[%clk 0:00:56.9]} 35.
Nd4 {[%clk 0:00:50.3]} 35... Rb7 {[%clk 0:00:57.4]} 36. Qf3 {[%clk 0:00:47.5]}
36... Qe7 {[%clk 0:00:56.4]} 37. e4 {[%clk 0:00:45.9]} 37... dxe4 {[%clk
0:00:54]} 38. Qxe4 {[%clk 0:00:44.6]} 38... Rb6 {[%clk 0:00:52.7]} 39. Qe3
{[%clk 0:00:40.4]} 39... Ba7 {[%clk 0:00:46]} 40. Qg5 {[%clk 0:00:32.2]} 40...
Qxg5 {[%clk 0:00:44.1]} 41. hxg5 {[%clk 0:00:31.7]} 41... Rbb8 {[%clk
0:00:41.2]} 42. Kg2 {[%clk 0:00:21.8]} 42... Rc5 {[%clk 0:00:40.3]} 43. f4
{[%clk 0:00:20.9]} 43... Rc7 {[%clk 0:00:41]} 44. Be2 {[%clk 0:00:18.7]} 44...
Rcc8 {[%clk 0:00:26.8]} 45. Nb3 {[%clk 0:00:18.6]} 45... Rd8 {[%clk 0:00:21.1]}
46. Bf3 {[%clk 0:00:18.9]} 46... Kf8 {[%clk 0:00:20.2]} 47. Na5 {[%clk
0:00:17.8]} 47... Rdc8 {[%clk 0:00:19.1]} 48. Rd2 {[%clk 0:00:17.1]} 48... Ke7
{[%clk 0:00:19.5]} 49. Red1 {[%clk 0:00:17.2]} 49... Bb6 {[%clk 0:00:20.1]} 50.
Nb3 {[%clk 0:00:16.6]} 50... Rc7 {[%clk 0:00:20.8]} 51. Nd4 {[%clk 0:00:17.1]}
51... Bc5 {[%clk 0:00:19.9]} 52. Be2 {[%clk 0:00:16.8]} 52... Rb6 {[%clk
0:00:18.9]} 53. Bf3 {[%clk 0:00:14.7]} 53... Bd6 {[%clk 0:00:18.2]} 54. Be4
{[%clk 0:00:10.1]} 54... h4 {[%clk 0:00:18.1]} 55. Nf3 {[%clk 0:00:09.6]} 55...
hxg3 {[%clk 0:00:17.4]} 56. Kxg3 {[%clk 0:00:10.3]} 56... Rc4 {[%clk 0:00:17.2]}
57. Rd4 {[%clk 0:00:09]} 57... Rxd4 {[%clk 0:00:15.4]} 58. Rxd4 {[%clk 0:00:07]}
58... Bc5 {[%clk 0:00:15.4]} 59. Rd3 {[%clk 0:00:06.3]} 59... Rb8 {[%clk
0:00:15]} 60. Ne5 {[%clk 0:00:06.2]} 60... Rc8 {[%clk 0:00:15.7]} 61. Kg4 {[%clk
0:00:04.9]} 61... Bd6 {[%clk 0:00:15.3]} 62. Kg3 {[%clk 0:00:04.8]} 62... Bb8
{[%clk 0:00:14.9]} 63. Ng4 {[%clk 0:00:05.2]} 63... Rc5 {[%clk 0:00:12.8]} 64.
Nf6 {[%clk 0:00:04.2]} 64... Rxg5+ {[%clk 0:00:11.3]} 65. Kf3 {[%clk 0:00:02.2]}
65... Rc5 {[%clk 0:00:11.9]} 66. Nxe8 {[%clk 0:00:01.5]} 66... Kxe8 {[%clk
0:00:12.8]} 0-1

[Event "Early-Titled-Tuesday-Blitz-October-03-2023"]
[Site "Chess.com"]
[Date "2023.10.03"]
[Round "1"]
[White "TheoSlade"]
[Black "AvitalBor"]
[Result "0-1"]
[WhiteElo "2486"]
[BlackElo "2869"]
[TimeControl "180+1"]
[EndTime "8:08:41 PDT"]
[Termination "AvitalBor won by checkmate"]

1. d4 {[%clk 0:03:00.9]} 1... c5 {[%clk 0:02:55.2]} 2. d5 {[%clk 0:03:00.8]}
2... g6 {[%clk 0:02:54.6]} 3. e4 {[%clk 0:02:59.1]} 3... Bg7 {[%clk 0:02:54.8]}
4. c4 {[%clk 0:02:58.9]} 4... d6 {[%clk 0:02:51.4]} 5. Be2 {[%clk 0:02:58.7]}
5... Nf6 {[%clk 0:02:51.2]} 6. Nc3 {[%clk 0:02:58.1]} 6... b5 {[%clk 0:02:50.8]}
7. cxb5 {[%clk 0:02:57.4]} 7... a6 {[%clk 0:02:51.2]} 8. Nf3 {[%clk 0:02:54.6]}
8... O-O {[%clk 0:02:50.3]} 9. O-O {[%clk 0:02:51.8]} 9... axb5 {[%clk
0:02:50.2]} 10. Bxb5 {[%clk 0:02:51.3]} 10... Ba6 {[%clk 0:02:50.4]} 11. Qe2
{[%clk 0:02:42.9]} 11... Qb6 {[%clk 0:02:45.2]} 12. a4 {[%clk 0:02:39.6]} 12...
Bxb5 {[%clk 0:02:44.6]} 13. Nxb5 {[%clk 0:02:36.5]} 13... Na6 {[%clk 0:02:43.7]}
14. Nd2 {[%clk 0:02:32.9]} 14... Nd7 {[%clk 0:02:28.3]} 15. Nc4 {[%clk 0:02:33]}
15... Qb8 {[%clk 0:02:21.2]} 16. Bd2 {[%clk 0:02:29.2]} 16... Nc7 {[%clk
0:02:18.3]} 17. Nxc7 {[%clk 0:02:26.7]} 17... Qxc7 {[%clk 0:02:19.2]} 18. Bc3
{[%clk 0:02:25.9]} 18... Rfb8 {[%clk 0:02:13.6]} 19. Qc2 {[%clk 0:02:16.5]}
19... Ra6 {[%clk 0:02:07.9]} 20. Rfb1 {[%clk 0:02:11.1]} 20... Qa7 {[%clk
0:02:03.1]} 21. Bxg7 {[%clk 0:02:07.2]} 21... Kxg7 {[%clk 0:02:02.4]} 22. Qc3+
{[%clk 0:02:06.9]} 22... Kg8 {[%clk 0:01:57.3]} 23. b3 {[%clk 0:02:07.4]} 23...
Rb4 {[%clk 0:01:53.9]} 24. h3 {[%clk 0:02:02.3]} 24... Qb7 {[%clk 0:01:51.7]}
25. Ra3 {[%clk 0:01:58.9]} 25... Raxa4 {[%clk 0:01:46.3]} 26. Rxa4 {[%clk
0:01:53.5]} 26... Rxa4 {[%clk 0:01:46.1]} 27. bxa4 {[%clk 0:01:33]} 27... Qxb1+
{[%clk 0:01:47]} 28. Kh2 {[%clk 0:01:33.5]} 28... Qxe4 {[%clk 0:01:45.3]} 29. a5
{[%clk 0:01:32.6]} 29... Qxd5 {[%clk 0:01:33.8]} 30. a6 {[%clk 0:01:32.5]} 30...
Qa8 {[%clk 0:01:34]} 31. Qa5 {[%clk 0:01:26.2]} 31... Nb8 {[%clk 0:01:27.7]} 32.
a7 {[%clk 0:01:12.9]} 32... Nc6 {[%clk 0:01:27.3]} 33. Qc7 {[%clk 0:01:13.6]}
33... Nxa7 {[%clk 0:01:18.4]} 34. Qxe7 {[%clk 0:01:13.3]} 34... Nb5 {[%clk
0:01:13]} 35. Nb6 {[%clk 0:00:59.7]} 35... Qf8 {[%clk 0:01:01.9]} 36. Qd7 {[%clk
0:00:47.6]} 36... Nc3 {[%clk 0:00:58.3]} 37. Qc7 {[%clk 0:00:31.7]} 37... h5
{[%clk 0:00:41.7]} 38. Nd7 {[%clk 0:00:27.6]} 38... Qe7 {[%clk 0:00:39.1]} 39.
Qb8+ {[%clk 0:00:20]} 39... Kg7 {[%clk 0:00:36.9]} 40. Nb6 {[%clk 0:00:20.3]}
40... d5 {[%clk 0:00:34.7]} 41. Nc8 {[%clk 0:00:15.5]} 41... Qe6 {[%clk
0:00:33.6]} 42. Qc7 {[%clk 0:00:11.4]} 42... c4 {[%clk 0:00:27.8]} 43. Ne7
{[%clk 0:00:12]} 43... d4 {[%clk 0:00:25.6]} 44. Qd8 {[%clk 0:00:10.9]} 44... d3
{[%clk 0:00:21]} 45. Qg8+ {[%clk 0:00:09.3]} 45... Kf6 {[%clk 0:00:21.3]} 46.
Nc8 {[%clk 0:00:09.3]} 46... Qe5+ {[%clk 0:00:20.6]} 47. g3 {[%clk 0:00:09.9]}
47... Ne4 {[%clk 0:00:20.3]} 48. Qh8+ {[%clk 0:00:10.4]} 48... Kf5 {[%clk
0:00:20.1]} 49. Qf8 {[%clk 0:00:06.2]} 49... Qe6 {[%clk 0:00:14.3]} 50. Ne7+
{[%clk 0:00:05.7]} 50... Ke5 {[%clk 0:00:14.2]} 51. Qb8+ {[%clk 0:00:03.9]}
51... Kd4 {[%clk 0:00:14.1]} 52. Qa7+ {[%clk 0:00:02.9]} 52... Kc3 {[%clk
0:00:13.6]} 53. Qa3+ {[%clk 0:00:03.6]} 53... Kd2 {[%clk 0:00:13.1]} 54. Qb2+
{[%clk 0:00:03.8]} 54... Kd1 {[%clk 0:00:12.2]} 55. Qb1+ {[%clk 0:00:04.1]}
55... Ke2 {[%clk 0:00:12.2]} 56. Qb2+ {[%clk 0:00:04.9]} 56... d2 {[%clk
0:00:12]} 57. Ng8 {[%clk 0:00:04.3]} 57... c3 {[%clk 0:00:11.9]} 58. Qc2 {[%clk
0:00:04.4]} 58... Nxf2 {[%clk 0:00:11.2]} 59. Nh6 {[%clk 0:00:04.4]} 59... Nd3
{[%clk 0:00:10.9]} 60. Kg1 {[%clk 0:00:05.2]} 60... Qe3+ {[%clk 0:00:10.7]} 61.
Kg2 {[%clk 0:00:05.4]} 61... Qf2+ {[%clk 0:00:10.9]} 62. Kh1 {[%clk 0:00:06.2]}
62... Qe1+ {[%clk 0:00:10.2]} 63. Kg2 {[%clk 0:00:06.4]} 63... Qf1+ {[%clk
0:00:10.1]} 64. Kh2 {[%clk 0:00:06.2]} 64... Nf2 {[%clk 0:00:10.2]} 65. g4
{[%clk 0:00:01.8]} 65... Qxh3+ {[%clk 0:00:09]} 66. Kg1 {[%clk 0:00:02.5]} 66...
Qh1# {[%clk 0:00:09.2]} 0-1

[Event "Early-Titled-Tuesday-Blitz-October-03-2023"]
[Site "Chess.com"]
[Date "2023.10.03"]
[Round "1"]
[White "Fantastic_Power"]
[Black "Dr_crypt"]
[Result "1-0"]
[WhiteElo "2761"]
[BlackElo "2434"]
[TimeControl "180+1"]
[EndTime "8:08:52 PDT"]
[Termination "Fantastic_Power won on time"]

1. e4 {[%clk 0:02:47.8]} 1... d5 {[%clk 0:02:59.9]} 2. exd5 {[%clk 0:02:47.8]}
2... Qxd5 {[%clk 0:03:00.8]} 3. Nc3 {[%clk 0:02:47.9]} 3... Qd6 {[%clk
0:03:01.6]} 4. d4 {[%clk 0:02:47.7]} 4... c6 {[%clk 0:03:01.2]} 5. Bc4 {[%clk
0:02:46.4]} 5... Nf6 {[%clk 0:03:00.9]} 6. Nge2 {[%clk 0:02:46.1]} 6... Bg4
{[%clk 0:02:59.4]} 7. f3 {[%clk 0:02:45.6]} 7... Bf5 {[%clk 0:02:58.4]} 8. Bf4
{[%clk 0:02:45.3]} 8... Qb4 {[%clk 0:02:57.5]} 9. Bd3 {[%clk 0:02:40.4]} 9...
Bxd3 {[%clk 0:02:53.5]} 10. Qxd3 {[%clk 0:02:41.3]} 10... e6 {[%clk 0:02:52.9]}
11. O-O-O {[%clk 0:02:41.3]} 11... Nbd7 {[%clk 0:02:51.3]} 12. g4 {[%clk
0:02:40.9]} 12... Qa5 {[%clk 0:02:46.7]} 13. Kb1 {[%clk 0:02:30.8]} 13... Nd5
{[%clk 0:02:46.5]} 14. Nxd5 {[%clk 0:02:27.8]} 14... cxd5 {[%clk 0:02:44.1]} 15.
h4 {[%clk 0:02:17.9]} 15... Be7 {[%clk 0:02:42.3]} 16. g5 {[%clk 0:02:06.2]}
16... O-O {[%clk 0:02:31.1]} 17. h5 {[%clk 0:02:05.5]} 17... Qa6 {[%clk
0:02:14.8]} 18. Qe3 {[%clk 0:02:02.8]} 18... Nb6 {[%clk 0:02:12.1]} 19. b3
{[%clk 0:02:00.1]} 19... Qb5 {[%clk 0:02:02.5]} 20. g6 {[%clk 0:01:42.5]} 20...
Nc4 {[%clk 0:01:37.8]} 21. gxf7+ {[%clk 0:01:37.6]} 21... Rxf7 {[%clk
0:01:38.7]} 22. Qxe6 {[%clk 0:01:35.1]} 22... Re8 {[%clk 0:01:21.2]} 23. Nc3
{[%clk 0:01:27.1]} 23... Na3+ {[%clk 0:01:08.5]} 24. Kb2 {[%clk 0:01:26.8]}
24... Qc6 {[%clk 0:00:49.9]} 25. Qxc6 {[%clk 0:01:09.3]} 25... bxc6 {[%clk
0:00:50.8]} 26. Be5 {[%clk 0:01:09.1]} 26... Rxf3 {[%clk 0:00:50.3]} 27. Rdg1
{[%clk 0:01:00]} 27... Rf7 {[%clk 0:00:42.4]} 28. h6 {[%clk 0:00:56.2]} 28... g6
{[%clk 0:00:36.7]} 29. Ne2 {[%clk 0:00:38.3]} 29... Nb5 {[%clk 0:00:31]} 30. Nf4
{[%clk 0:00:38.5]} 30... Ba3+ {[%clk 0:00:30.7]} 31. Ka1 {[%clk 0:00:36.7]}
31... Rxe5 {[%clk 0:00:24.9]} 32. Nxg6 {[%clk 0:00:36.9]} 32... Re2 {[%clk
0:00:24.2]} 33. Nf4+ {[%clk 0:00:30.5]} 33... Kf8 {[%clk 0:00:15.6]} 34. Nxe2
{[%clk 0:00:30.4]} 34... Re7 {[%clk 0:00:14.8]} 35. Nf4 {[%clk 0:00:24.7]} 35...
Bb4 {[%clk 0:00:09.1]} 36. a4 {[%clk 0:00:11.9]} 36... Bc3+ {[%clk 0:00:09.2]}
37. Ka2 {[%clk 0:00:12.5]} 37... Nxd4 {[%clk 0:00:09.5]} 38. Rg2 {[%clk
0:00:13]} 38... Nf5 {[%clk 0:00:05.1]} 39. Nd3 {[%clk 0:00:09]} 39... Rf7 {[%clk
0:00:05]} 40. Rf2 {[%clk 0:00:06.3]} 40... Bd4 {[%clk 0:00:05.5]} 41. Rf4 {[%clk
0:00:06.1]} 41... Be3 {[%clk 0:00:03.7]} 42. Rf3 {[%clk 0:00:05.6]} 42... Bxh6
{[%clk 0:00:03.6]} 43. Rxf5 {[%clk 0:00:05.5]} 43... Rxf5 {[%clk 0:00:03.8]} 44.
Rxh6 {[%clk 0:00:06.4]} 44... Kg7 {[%clk 0:00:04.5]} 45. Rxc6 {[%clk 0:00:06.4]}
45... h5 {[%clk 0:00:05.4]} 46. Rc7+ {[%clk 0:00:05.8]} 46... Kg6 {[%clk
0:00:06.2]} 47. Rxa7 {[%clk 0:00:06.2]} 47... h4 {[%clk 0:00:06.5]} 48. Ra8
{[%clk 0:00:06.5]} 48... h3 {[%clk 0:00:06.7]} 49. Rg8+ {[%clk 0:00:05.7]} 49...
Kh5 {[%clk 0:00:05.6]} 50. Rh8+ {[%clk 0:00:05.6]} 50... Kg4 {[%clk 0:00:06.5]}
51. a5 {[%clk 0:00:06.5]} 51... Kg3 {[%clk 0:00:03.9]} 52. a6 {[%clk 0:00:05.9]}
52... Rf6 {[%clk 0:00:02.4]} 53. Nc5 {[%clk 0:00:06]} 53... Rc6 {[%clk
0:00:01.9]} 54. a7 {[%clk 0:00:06]} 54... Rxc5 {[%clk 0:00:01.5]} 55. a8=Q
{[%clk 0:00:06.3]} 55... Rxc2+ {[%clk 0:00:01.5]} 56. Ka3 {[%clk 0:00:06.7]}
56... h2 {[%clk 0:00:02.4]} 57. Qg8+ {[%clk 0:00:06.6]} 57... Kf4 {[%clk
0:00:02.5]} 58. Qb8+ {[%clk 0:00:06.4]} 58... Ke4 {[%clk 0:00:02.9]} 59. Rxh2
{[%clk 0:00:07.3]} 59... Rc3 {[%clk 0:00:02.8]} 60. Qe8+ {[%clk 0:00:07.1]}
60... Kd4 {[%clk 0:00:03.4]} 61. Rh4+ {[%clk 0:00:07.2]} 61... Kc5 {[%clk
0:00:03.8]} 62. Qc8+ {[%clk 0:00:07.8]} 62... Kd6 {[%clk 0:00:04.5]} 63. Qxc3
{[%clk 0:00:08.7]} 1-0